Cogmind - Beta 14 @@@ ROGUE MODE // 2025.03.20 @ 15:55:51 Player: kat Result: Self-destructed Performance ------------- Evolutions (2) 1000 Regions Visited (4) 800 Robots Destroyed (39) 195 Value Destroyed (1108) 1108 Prototype IDs (0) 0 Alien Tech Used (0) 0 Bonus (0) 0 TOTAL SCORE: 3103 Bonus ------- None Cogmind --------- Core Integrity 431/550 Matter 161/300 Energy 8/100 System Corruption 0% Temperature Cool (90) Movement Walking (190) Ox1 Location -8/Materials Parts ------- > --- POWER (1) -------- (None) > --- PROPULSION (3) --- Aluminum Leg > --- UTILITY (4) ------ Improved Heat Sink Small Storage Unit Subdweller Optics Signal Interpreter > --- WEAPON (3) ------- Subdweller Beam Cannon > --- INVENTORY (8) ---- Light Nuclear Core Small Laser Beam Cannon Beam Cannon Flamer Peak State ------------ > --- POWER ------------ Subdweller Power Source > --- PROPULSION ------- Aluminum Leg Aluminum Leg > --- UTILITY ---------- Improved Heat Sink Small Storage Unit Subdweller Optics Signal Interpreter > --- WEAPON ----------- Subdweller Beam Cannon Subdweller Machine Gun Grenade Launcher > --- INVENTORY -------- Small Laser Beam Cannon Beam Cannon Grenade Launcher Flamer [Rating: 16] Favorites ----------- Power Light Nuclear Core Engine Ion Engine Power Core Light Nuclear Core Propulsion Aluminum Leg Leg Aluminum Leg Utility Small Storage Unit Device Improved Heat Sink Storage Small Storage Unit Processor Signal Interpreter Protection Backup Plating I Weapon Particle Gun Energy Gun Particle Gun Energy Cannon Subdweller Beam Cannon Ballistic Gun Subdweller Machine Gun Launcher Grenade Launcher Build | -11 -10 -10 -10 -8 ------- Run | Yrd Mat Min Sub Mat Slots Evolved 4 | . . . . 4 Power . | . . . . . Propulsion 1 | . . . . 1 Utility 2 | . . . . 2 Weapon 1 | . . . . 1 Parts Attached 24 | 6 2 8 3 5 Power 4 | 1 . 2 1 . Engine 3 | 1 . 1 1 . Core 1 | . . 1 . . Reactor . | . . . . . Propulsion 7 | 2 1 3 . 1 Treads . | . . . . . Leg 7 | 2 1 3 . 1 Wheel . | . . . . . Hover . | . . . . . Flight . | . . . . . Utility 4 | 1 1 . . 2 Device 2 | . . . . 2 Storage 1 | 1 . . . . Processor 1 | . 1 . . . Hackware . | . . . . . Protection . | . . . . . Artifact . | . . . . . Weapon 9 | 2 . 3 2 2 Energy Gun 5 | 2 . 3 . . Energy Cannon 1 | . . . . 1 Ballistic Gun 1 | . . . 1 . Ballistic Cannon . | . . . . . Launcher 2 | . . . 1 1 Special Weapon . | . . . . . Impact Weapon . | . . . . . Slashing Weapon . | . . . . . Piercing Weapon . | . . . . . Special Melee Weapon . | . . . . . Unidentified Prototypes . | . . . . . Parts Lost 6 | . . 1 . 5 Power 2 | . . 1 . 1 Propulsion 1 | . . . . 1 Utility . | . . . . . Weapon 3 | . . . . 3 Highest Loss Streak 5 | . . 1 . 5 To Critical Strikes . | . . . . . Average Slot Usage (%) 98 | . 99 99 99 85 Engine 5 | . 14 2 5 8 Core 7 | . . 11 8 . Leg 26 | . 28 28 28 15 Device 1 | . . . . 18 Storage 13 | . 14 14 14 9 Processor 10 | . . 14 14 9 Protection 2 | . 12 . . . Energy Gun 20 | . 28 28 13 . Ballistic Gun 1 | . . . 1 9 Launcher 4 | . . . 12 8 Peak Build Rating 16 | 6 7 11 11 16 Average Rating 10 | 4 6 10 10 15 On Entrance 6 | . 6 7 11 10 Naked Turns . | . . . . . Heaviest Build 28 | 13 14 14 17 28 Greatest Support 20 | 20 20 20 20 20 Greatest Overweight (x) 1 | . . 1 . 1 Average Overweight (x) . | . . . . 1 Largest Inventory Capacity 8 | 8 8 8 8 8 Average Capacity 7 | 6 8 8 8 8 Most Carried 8 | 2 8 8 8 7 Average Carried 7 | . 5 7 7 5 Final Capacity 8 | 8 8 8 8 8 Final Carried 8 | 1 7 8 8 5 Class Distribution -------------------- 71% | Scavenger-Mutant 21% | Mutant 6% | Scavenger-Skirmisher Dominant Class ---------------- Mutant | -10/Materials Scavenger-Mutant | -10/Mines Scavenger-Mutant | -10/Subcaves Scavenger-Skirmisher | -8/Materials Resources | -11 -10 -10 -10 -8 ----------- Run | Yrd Mat Min Sub Mat Matter Collected 487 | 203 67 85 111 21 Remotely . | . . . . . Salvage Created 1014 | . 150 501 189 174 Parts 75 | . 10 31 24 10 Haulers Intercepted . | . . . . . Recyclers Shooed . | . . . . . Parts Field Recycled . | . . . . . Retrieved Matter . | . . . . . Parts Self-Destructed 10 | . . . 10 . Prevented . | . . . . . Kills | -11 -10 -10 -10 -8 ------- Run | Yrd Mat Min Sub Mat Combat Hostiles Destroyed 33 | . 3 15 10 5 Guns 19 | . 3 15 . 1 Cannons 1 | . . . . 1 AOE 13 | . . . 10 3 Classes Destroyed 8 | . 3 1 1 3 Worker 2 | . . . . 2 Builder 1 | . . . . 1 Operator 1 | . 1 . . . Watcher 2 | . 1 . . 1 Swarmer 10 | . . 5 3 2 Grunt 14 | . 3 10 . 1 Sentry 2 | . . . . 2 Subdweller 7 | . . . 7 . Best Kill Streak 8 | . 1 3 3 8 Combat Bots Only 5 | . 1 3 3 5 Max Kills in Single Turn 2 | . 1 2 2 2 Gunslinging 1 | . . 1 . . Exploded 2 | . . . 2 1 Melee . | . . . . . Uniques/NPCs Destroyed . | . . . . . Combat | -11 -10 -10 -10 -8 -------- Run | Yrd Mat Min Sub Mat Hostile Shots Fired 147 | . 23 59 12 53 Missed 40 | . 6 20 4 10 Damage Taken 1379 | . 191 429 166 593 Core 232 | . 12 67 34 119 Absorbed by Shields . | . . . . . Regen/Repaired (Parts) 75 | . . . . 75 Core Remaining (%) 77 | 100 . . 54 . Volleys Fired 86 | . 20 31 14 21 Largest 3 | . 2 2 2 3 Hottest 140 | . 90 105 95 140 Shots Fired 151 | . 38 62 15 36 Gun 114 | . 38 62 1 13 Cannon 18 | . . . . 18 Launcher 19 | . . . 14 5 Special . | . . . . . Kinetic 13 | . . . . 13 Thermal 119 | . 38 62 1 18 Explosive 19 | . . . 14 5 Electromagnetic . | . . . . . Robot Hit Streak 14 | . 7 11 13 14 Robot Miss Streak 7 | . 7 5 . 3 Penetration Max . | . . . . . Secondary Targets 2 | . . 2 . . Max Gunslinging Chain 1 | . . 1 . . Shots Hit Robots 92 | . 20 40 10 22 Core Hits 68 | . 9 28 15 16 Critical Kills 1 | . . . . 1 Critical Parts Destroyed . | . . . . . Critical Strikes 3 | . 2 . . 1 Burn 2 | . 2 . . . Meltdown 1 | . . . . 1 Melee Attacks . | . . . . . Impact . | . . . . . Slashing . | . . . . . Piercing . | . . . . . Sneak Attacks . | . . . . . Combat Hostiles . | . . . . . Follow-up Attacks . | . . . . . Damage Inflicted 2389 | . 247 519 763 860 Guns 927 | . 247 519 . 161 Cannons 325 | . . . . 325 Explosions 1137 | . . . 763 374 Melee . | . . . . . Ramming . | . . . . . Kinetic 161 | . . . . 161 Thermal 1091 | . 247 519 . 325 Explosive 1104 | . . . 763 341 Electromagnetic 33 | . . . . 33 Impact . | . . . . . Slashing . | . . . . . Piercing . | . . . . . Highest Corruption . | . . . . . Average Corruption . | . . . . . Corruption Purged . | . . . . . Corruption Blocked . | . . . . . Overload Shots . | . . . . . Overflow Damage 5 | . . . . 5 Projectiles . | . . . . . Explosions 5 | . . . . 5 Melee . | . . . . . Knockbacks . | . . . . . Impact . | . . . . . Kinetic . | . . . . . Secondary . | . . . . . Self-Inflicted Damage 33 | . . . 30 3 Shots 4 | . . . 3 1 Rammed . | . . . . . Targets Rammed . | . . . . . Kicked . | . . . . . Crushed . | . . . . . Highest Temperature 330 | . 330 291 . 115 Average Temperature 105 | . 107 118 . 54 Received Heat Transfer 489 | . 102 156 15 216 Effects 3 | . . 3 . . Interference 3 | . . 3 . . Siege Activations . | . . . . . Robots Corrupted . | . . . . . Combat Hostiles . | . . . . . Parts Fried . | . . . . . Impact Corruptions . | . . . . . Robots Melted 1 | . . . . 1 Combat Hostiles . | . . . . . Parts Melted 6 | . 1 4 . 1 Heat Transferred 2489 | . 805 1240 . 444 Parts Sabotaged . | . . . . . Parts Stolen . | . . . . . Parts Stripped . | . . . . . Power Chain Reactions . | . . . . . Alert | -11 -10 -10 -10 -8 ------- Run | Yrd Mat Min Sub Mat Peak Influence 280 | . 146 280 . 186 Initial 25 | . . 25 . . Average 92 | . 77 117 . 31 Maximum Alert Level 1 | . . 1 . . Low Security (%) 93 | 100 100 88 . 100 Level 1 6 | . . 11 . . Level 2 . | . . . . . Level 3 . | . . . . . Level 4 . | . . . . . Level 5 . | . . . . . High Security . | . . . . . Max Security . | . . . . . Squads Dispatched 3 | . 2 . . 1 Investigation . | . . . . . Extermination . | . . . . . Reinforcement 3 | . 2 . . 1 Assault . | . . . . . Garrison . | . . . . . Intercept . | . . . . . Searches Triggered . | . . . . . Construction Impeded . | . . . . . Haulers Reinforced . | . . . . . Active Scanning Responses . | . . . . . Cargo Convoy Interrupts . | . . . . . Stealth | -11 -10 -10 -10 -8 --------- Run | Yrd Mat Min Sub Mat Distress Signals 2 | . . . . 2 Communications Jammed . | . . . . . Distress Signals . | . . . . . Times Spotted 44 | . 8 16 8 12 Peak Tracking Total 6 | . 3 3 3 6 Tactical Retreats 3 | . 1 1 1 . Traps | -11 -10 -10 -10 -8 ------- Run | Yrd Mat Min Sub Mat Traps Triggered . | . . . . . Indirectly . | . . . . . Trap Hack Attempts . | . . . . . Triggered . | . . . . . Disarmed . | . . . . . Reprogrammed . | . . . . . Reused . | . . . . . Traps Extracted . | . . . . . Installed . | . . . . . Triggered . | . . . . . Machines | -11 -10 -10 -10 -8 ---------- Run | Yrd Mat Min Sub Mat Machines Disabled 2 | . . . . 2 Max in Single Turn 2 | . . . . 2 Machines Repaired . | . . . . . Machines Dismantled . | . . . . . Machines Sabotaged . | . . . . . Overloaded Fab Kills . | . . . . . Hacking | -11 -10 -10 -10 -8 --------- Run | Yrd Mat Min Sub Mat Machines Accessed 9 | . 6 1 1 1 Terminals 5 | . 4 1 . . Fabricators . | . . . . . Repair Stations 2 | . 1 . . 1 Recycling Units 1 | . 1 . . . Scanalyzers . | . . . . . Garrison Access . | . . . . . Total Hacks 23 | . 14 3 3 3 Successful 12 | . 7 . 3 2 Failed 11 | . 7 3 . 1 Catastrophic 1 | . . . . 1 Database Lockouts . | . . . . . Manual 3 | . 3 . . . Terminals 13 | . 10 3 . . Fabricators . | . . . . . Repair Stations 5 | . 2 . . 3 Recycling Units 2 | . 2 . . . Scanalyzers . | . . . . . Garrison Access . | . . . . . Terminal Hacks 7 | . 4 . 3 . Record 3 | . . . 3 . Robot Analysis 1 | . 1 . . . Alert Level 1 | . 1 . . . Recall Reinforcements 1 | . 1 . . . Zone Layout 1 | . 1 . . . Fabricator Hacks . | . . . . . Repair Station Hacks 3 | . 1 . . 2 Scan Component 1 | . . . . 1 Repair 1 | . . . . 1 Refit 1 | . 1 . . . Recycling Unit Hacks 1 | . 1 . . . Report Inventory 1 | . 1 . . . Scanalyzer . | . . . . . Garrison Access Hacks . | . . . . . Unauthorized Hacks 1 | . 1 . . . Terminals . | . . . . . Fabricators . | . . . . . Repair Stations . | . . . . . Recycling Units 1 | . 1 . . . Reject 1 | . 1 . . . Scanalyzers . | . . . . . Garrison Access . | . . . . . Data Cores Recovered . | . . . . . Used . | . . . . . Hacking Detections 8 | . 6 1 . 1 Full Trace Events . | . . . . . Feedback Events . | . . . . . Feedback Blocked . | . . . . . Robot Schematics Acquired . | . . . . . Robots Built . | . . . . . Authchips . | . . . . . Time . | . . . . . Total Robot Build Rating . | . . . . . Part Schematics Acquired . | . . . . . Parts Built . | . . . . . Authchips . | . . . . . Time . | . . . . . Total Part Build Rating . | . . . . . Parts Repaired 1 | . . . . 1 Time 26 | . . . . 26 Parts Recycled . | . . . . . Recycled Matter . | . . . . . Retrieved Matter . | . . . . . Retrieved Components . | . . . . . Parts Scanalyzed . | . . . . . Part Schematics Acquired . | . . . . . Parts Damaged . | . . . . . Bothacking | -11 -10 -10 -10 -8 ------------ Run | Yrd Mat Min Sub Mat Used RIF Installer . | . . . . . Robots Hacked . | . . . . . Non-combat . | . . . . . Combat . | . . . . . Robot Hacks Applied . | . . . . . Relay Couplers Released . | . . . . . Fabnet Peak Effective % . | . . . . . Robots Rewired . | . . . . . Allies Hacked . | . . . . . Hacks Repelled . | . . . . . Allies | -11 -10 -10 -10 -8 -------- Run | Yrd Mat Min Sub Mat Total Allies . | . . . . . Largest Group . | . . . . . Highest-Rated Group . | . . . . . Highest-Rated Ally . | . . . . . Total Orders . | . . . . . Ally Attacks . | . . . . . Total Damage . | . . . . . Kills . | . . . . . Allies Corrupted . | . . . . . Allies Melted . | . . . . . Intel | -11 -10 -10 -10 -8 ------- Run | Yrd Mat Min Sub Mat Robot Analysis Total 1 | . 1 . . . Derelict Logs Recovered . | . . . . . Drone Launches . | . . . . . Drone Recoveries . | . . . . . Exploration | -11 -10 -10 -10 -8 ------------- Run | Yrd Mat Min Sub Mat Turns Passed 2644 | 53 489 1039 840 223 Spaces Moved 1486 | 41 313 477 605 50 Core 8 | 8 . . . . Treads . | . . . . . Legs 1478 | 33 313 477 605 50 Wheels . | . . . . . Hover . | . . . . . Flight . | . . . . . Fastest Speed 50 | 50 120 120 120 190 Average Speed 122 | 106 120 120 120 190 Slowest Speed 190 | 120 120 190 120 190 Overloaded Moves . | . . . . . Propulsion Burnouts . | . . . . . Robots Hopped . | . . . . . Cave-ins Triggered . | . . . . . Exploration Rate (%) 37 | 3 49 85 38 14 Regions Visited 4 Branch Regions 2 Pre-discovered Areas 1 | . . . 1 . Known Exits Taken 3 | . 1 1 1 . Unknown Exits Taken 1 | 1 . . . . Scrap Searched 4 | . . 1 3 . Spaces Dug . | . . . . . Terrain Destroyed 98 | . . . 70 28 Melee . | . . . . . Projectile 7 | . . . . 7 AOE 91 | . . . 70 21 Terrain Rammed . | . . . . . Walls Destroyed . | . . . . . Machines Disabled . | . . . . . Actions | -11 -10 -10 -10 -8 --------- Run | Yrd Mat Min Sub Mat Total 2168 | 48 389 883 705 143 Wait 543 | . 46 355 76 66 Move 1482 | 40 312 476 604 50 Hop . | . . . . . Pick Up 17 | 2 7 4 3 1 Fast Attach 9 | 5 . 1 2 1 Attach 7 | 1 1 1 . 4 Detach . | . . . . . Swap 8 | . 1 6 1 . Drop 16 | . 2 9 5 . Fire 86 | . 20 31 14 21 Melee . | . . . . . Ram . | . . . . . Kick . | . . . . . Crush . | . . . . . Escape Stasis . | . . . . . Rewire . | . . . . . Trap . | . . . . . Miscellaneous . | . . . . . Route ------- -11/Scrapyard -10/Materials (discovered 2 exits: *Mat / *Min) -10/Mines (discovered 2 exits: *Mat / *Sub) -10/Subcaves -8/Materials History --------- Turn | Location | Event 2 | -11/Scrapyard | Discovered new exit (range 16) 54 | -11/Scrapyard | Entered Materials 205 | -10/Materials | Discovered new exit (range 14) 218 | -10/Materials | Discovered new exit (range 7) 302 | -10/Materials | Build established: Mutant 542 | -10/Materials | Identified exit to Mines 543 | -10/Materials | Entered Mines 876 | -10/Mines | Build established: Scavenger-Mutant 1074 | -10/Mines | Discovered new exit (range 10) 1084 | -10/Mines | Identified exit to Materials 1576 | -10/Mines | Discovered new exit (range 6) 1581 | -10/Mines | Identified exit to Subcaves 1582 | -10/Mines | Entered Subcaves 1591 | -10/Subcaves | Learned location of Zion (-6) 1591 | -10/Subcaves | Met a Zionite searching for "candidates" 1660 | -10/Subcaves | Disturbed a concealed Subdweller 1729 | -10/Subcaves | Visited Clippyterm 1732 | -10/Subcaves | Learned Research security intel 2162 | -10/Subcaves | A swath of the cavern ceiling suddenly collapsed 2321 | -10/Subcaves | Discovered new exit (range 12) 2348 | -10/Subcaves | Ambushed by Subdweller buried in earth 2369 | -10/Subcaves | Identified exit to Materials 2422 | -10/Subcaves | Entered Materials 2422 | -8/Materials | Evolved 4 slots: Propulsion x1, Utility x2, Weapon x1 2545 | -8/Materials | Repaired Aluminum Leg 2645 | -8/Materials | Self-destructed Last Messages --------------- 02600_ ALERT: Hostiles spotted, dispatching reinforcements to Terminal M003. 02600_ S-10 Pest destroyed. 02605_ Grenade Launcher destroyed. 02610_ Y-45 Defender destroyed. 02616_ Aluminum Leg destroyed. 02620_ Y-45 Defender destroyed. 02621_ K-01 Serf collects debris. 02628_ Neutrino Reactor explodes. 02628_ K-01 Serf destroyed. 02628_ Terminal disabled. 02629_ The unstable cave ceiling collapses. 02629_ Sub. Power Source destroyed. 02629_ K-01 Serf collects debris. 02635_ G-47 Trooper destroyed. 02636_ K-01 Serf collects debris. 02638_ Destroyed Flight Unit. 02639_ Grenade Launcher destroyed. 02639_ R-06 Scavenger collects Hvy. Assault Rifle. 02641_ Sub. Machine Gun destroyed. Map ----- +----------------------------------------------------+ | ???????????????????????????????????????????????? | | ???????????????????????????????????????????????? | | ???????????????????????????????????????????????? | | ???????????????????????????????????????????????? | | ???????????????????????????????????????????????? | | ???????????????????????????????????????????????? | | ???????????????????????????????????????????????? | | ???????????????????????????????????????????????? | | ???????????????????????????????????????????????? | | ???????????????????????????????????????????????? | | ???????????????????????????????????????????????? | | ???????????????????????????????????????????????? | | ???????????????????????????????????????????????? | | ???????????????????????????????????????????????? | | ????????????????????????????##+###????##???????? | | ???????????????????????????# #?? ???????? | | ??????????????????????????? #?! "??????? | | ?????????????????????????? # %= T??????? | | ?????????????????????????? a = ""?????? | | ??????????????????????####; ?????? | | ?????????????????????##;#! ?????? | | ?????????????????????# ss % ?????? | | ?????????????????????# g= ?????????? | | ?????????????????????# r #;####???????? | | ?????????????????????# u ???? | | ?????????????????????# @ k ???? | | ?????????????????????# !% k ???? | | ?????????????????????### ;+#######" ###???????? | | ????????????????????????### #??????????????????? | | ??????????????????????????# #???##########?????? | | ??????????????????????????# #???# #?????? | | ??????????????????????????# #???# """ #?????? | | ??????????????????????????# ##### "R" #?????? | | ??????????????????????????# + " " #?????? | | ??????????????????????????#####"# = #?????? | | ??????????????????????????????### """ #?????? | | ????????????????????????????????#[ """ #?????? | | ????????????????????????????????# """ #?????? | | ????????????????????????????????# #?###+# | | ?????????????????????????????###########+### | | ?????????????????????????????# | | ?????????????????????????????+ | | ?????????????????????????????# | | ?????????????????????????????# ########### | | ?????????????????????????????#?????????????## | | ????????????????????????????????????????????# | | ????????????????????????????????????????????# | | ????????????????????????????????????????????# | | ????????????????????????????????????????????# | | ????????????????????????????????????????????# | +----------------------------------------------------+ Best States ------------- Heat Dissipation 45 Energy Generation 15 Energy Capacity 250 Matter Stores 300 Matter Capacity 300 Sight Range 21 Terrain Scan Density 10 Armor Coverage 80 Evasion (%) 55 Item Schematics ----------------- None Robot Schematics ------------------ None Fabricated ------------ Nothing Alien Tech Used ----------------- None Achievements -------------- None Challenges ------------ None Game ------ Seed ForceRecoilFragment Manual? 0 Play Time 00:26:24 Cumulative 19.5 hours Start 2025.03.20 @ 15:29:56 End 2025.03.20 @ 15:55:51 Sessions 1 Manual Loads 0 Difficulty Rogue Special Mode None Game No. 24 Rogue 23 Adventurer 1 Explorer 0 Win Type - Total 0 Types 0/0/0/0/0/0/0/0/0 Lore% 23 Gallery% 21 Achievement% 21 Wizard Run 0 Options --------- Layout 0 ASCII 0 Keyboard 0 Movement Mouse Keybinds 0 Fullscreen 1 Font 16/SmallcapsGlow Map View 75x55 Zoom Use 0% Tactical HUD 1 Map Filters NONE Filters NONE Steam 1 RUN: 60c3057a-f30e-470a-8d1f-16c0a9babc3f